bitfinex-derivatives/quotes_SOLF0:USTF0_20250630
["timestamp","ask_amount","ask_price","bid_price","bid_amount"]
[1751302915644,6.3634,157.11,157.08,33.08]
[1751302915845,3.71288817,157.14,157.08,33.08]
[1751302916246,6.3632,157.12,157.08,39.4443]
[1751302917449,6.3633,157.11,157.08,33.08]
[1751302918246,3.71288817,157.14,157.05,553.75288817]
[1751302918448,3.71288817,157.12,157.05,586.83288817]
[1751302919047,3.71288817,157.12,157.05,583.12]
[1751302919849,6.365,157.07,157.05,583.12]
[1751302920240,36.79288817,157.12,157.05,33.08]
[1751302920646,6.3654,157.06,157.05,33.08]
[1751302920840,3.71288817,157.1,157.02,36.79288817]
[1751302922052,6.3657,157.06,157.02,43.15978817]
[1751302922455,3.71288817,157.1,157.02,36.79288817]
[1751302923041,6.3647,157.08,157.02,43.15978817]
[1751302923247,3.71288817,157.1,157.02,43.15978817]
[1751302923944,6.3658,157.05,157.02,43.15978817]
[1751302924343,6.3662,157.04,157.02,33.08]
[1751302924550,3.71288817,157.1,157.02,33.08]
[1751302924959,6.3661,157.05,157.02,33.08]
[1751302925355,33.08,157.12,157.02,39.4467]
[1751302925553,3.71288817,157.1,157.03,3.71288817]
[1751302927757,6.3656,157.06,157.03,3.71288817]
[1751302928353,6.3658,157.05,157.03,3.71288817]
[1751302929052,33.08,157.12,157.03,3.71288817]
[1751302929258,36.79288817,157.12,157.03,3.71288817]
[1751302929461,3.71288817,157.04,156.96,5.92254307]
[1751302929661,3.71288817,157.04,156.93,3.71288817]
[1751302929662,3.71288817,157.02,156.93,3.71288817]
[1751302930361,6.6488,157.05,156.97,3.71288817]
[1751302930561,4.4198,157.05,156.99,3.71288817]
[1751302930752,6.3676,157.01,156.99,3.71288817]
[1751302931665,6.3678,157.0,156.99,3.71288817]
[1751302933662,36.81288817,157.07,156.99,3.71288817]
[1751302933865,3.71998671,157.0,156.92,2.1887]
[1751302934866,3.71998671,157.0,156.92,5.90868671]
[1751302935164,33.1,157.01,156.94,3.71998671]
[1751302935368,33.1,157.01,156.95,33.1]
[1751302935666,3.71998671,157.0,156.95,33.1]
[1751302936061,6.3702,156.95,156.92,39.00868671]
[1751302937067,3.71998671,156.98,156.92,33.1]
[1751302937267,3.71998671,156.96,156.92,33.1]
[1751302937766,6.3691,156.97,156.92,33.1]
[1751302937966,3.71998671,156.98,156.92,33.1]
[1751302938866,6.3695,156.96,156.92,33.1]
[1751302939968,36.81998671,157.0,156.93,3.71998671]
[1751302940468,6.3685,156.99,156.95,6.3696]
[1751302941063,6.3685,156.99,156.94,6.3701]
[1751302941469,37.2872,157.02,156.93,3.71998671]
[1751302941669,3.71998671,157.01,156.95,6.3696]
[1751302942069,3.71998671,157.01,156.93,3.71998671]
[1751302942267,2.1161,157.02,156.97,3.71998671]
[1751302942463,35.3364,157.03,156.97,3.71998671]
[1751302942870,35.3364,157.03,156.96,33.08]
[1751302943171,2.2564,157.03,156.96,33.08]
[1751302943371,3.71998671,157.0,156.93,8.05248671]
[1751302943770,6.3688,156.98,156.93,14.42288671]
[1751302944268,2.2564,157.03,156.93,8.05248671]
[1751302944269,3.71998671,157.02,156.93,8.05248671]
[1751302944468,2.2564,157.03,156.97,3.71998671]
[1751302944871,6.3676,157.01,156.97,10.08858671]
[1751302945270,6.3676,157.01,156.98,6.3683]
[1751302945968,6.3678,157.0,156.97,10.08888671]
[1751302947272,6.3678,157.0,156.98,6.3685]
[1751302947875,6.3676,157.01,156.98,6.3685]
[1751302948671,6.3678,157.0,156.98,6.3685]
[1751302949376,6.3674,157.01,156.98,6.3685]
[1751302949875,6.3674,157.01,156.99,6.3682]
[1751302950074,6.3672,157.02,156.99,6.3682]
[1751302950479,3.71998671,157.05,156.98,6.3684]
[1751302950677,3.71998671,157.05,156.97,3.71998671]
[1751302951280,3.71998671,157.05,156.96,36.79998671]
[1751302951576,2.277,157.06,156.96,33.08]
[1751302951577,3.71998671,157.03,156.96,33.08]
[1751302951774,6.3684,156.99,156.96,39.4494]
[1751302952773,6.3687,156.98,156.96,33.08]
[1751302952976,3.71998671,157.01,156.96,33.08]
[1751302953172,6.3693,156.97,156.93,41.619]
[1751302953377,6.3693,156.97,156.93,39.4503]
[1751302953883,6.3693,156.97,156.94,6.3701]
[1751302954376,6.3687,156.98,156.94,6.3701]
[1751302954575,8.13268671,157.01,156.94,6.3701]
[1751302954882,6.3691,156.97,156.94,6.3701]
[1751302955083,8.13268671,157.01,156.94,6.3701]
[1751302955284,6.3689,156.98,156.94,6.3701]
[1751302955679,6.3689,156.98,156.95,6.3698]
[1751302955976,3.71998671,157.03,156.96,3.71998671]
[1751302956177,3.71998671,157.03,156.97,6.3687]
[1751302956773,3.71998671,157.03,156.96,3.71998671]
[1751302957179,6.3685,156.99,156.96,3.71998671]
[1751302958081,3.71998671,157.03,156.94,8.26548671]
[1751302958689,6.3689,156.98,156.94,8.26548671]
[1751302959284,6.3689,156.98,156.94,14.63558671]
[1751302959489,6.369,156.97,156.94,14.63558671]
[1751302960388,3.71998671,157.03,156.94,8.26548671]
[1751302960591,3.71998671,157.03,156.96,3.71998671]
[1751302961786,6.3674,157.01,156.96,3.71998671]
[1751302961987,3.71998671,157.03,156.96,3.71998671]
[1751302962392,6.3687,156.98,156.96,3.71998671]
[1751302963087,6.6108,157.06,156.97,33.08]
[1751302963286,2.277,157.06,157.0,3.71998671]
[1751302963485,6.3666,157.03,157.02,3.71998671]
[1751302964889,33.08,157.08,157.01,33.08]
[1751302964890,6.367,157.02,157.01,33.08]
[1751302965798,6.3668,157.03,157.01,33.08]
[1751302965991,33.08,157.08,157.01,33.08]
[1751302966586,36.79998671,157.08,157.01,33.08]
[1751302966986,6.3668,157.03,157.01,33.08]
[1751302967191,42.64705311,157.08,157.01,33.08]
[1751302967487,3.71998671,157.06,157.01,33.08]
[1751302967693,3.71998671,157.06,156.98,36.77998671]
[1751302967888,9.56705311,157.06,156.98,36.77998671]
[1751302968091,6.368,157.0,156.98,36.77998671]
[1751302968991,38.9270664,157.08,156.98,36.77998671]
[1751302969192,33.08,157.08,157.02,3.71998671]
[1751302969398,6.3666,157.03,157.02,3.71998671]
[1751302969592,6.3666,157.03,157.0,3.71998671]
[1751302970197,6.367,157.02,157.0,3.71998671]
[1751302970499,3.71998671,157.07,156.98,36.77998671]
[1751302970697,9.56705311,157.07,156.98,36.77998671]
[1751302971094,6.3681,157.0,156.98,36.77998671]
[1751302971294,9.56705311,157.07,156.98,36.77998671]
[1751302971690,6.3677,157.01,156.98,36.77998671]
[1751302972697,6.368,157.0,156.98,36.77998671]
[1751302973801,6.3682,156.99,156.98,36.77998671]
[1751302975498,6.368,157.0,156.98,36.77998671]
[1751302976500,6.3682,156.99,156.98,36.77998671]
[1751302979496,7.9255664,157.06,156.98,36.77998671]
[1751302981002,6.3677,157.01,156.98,36.77998671]
[1751302981398,7.9255664,157.06,156.98,36.77998671]
[1751302981696,12.7325,157.04,156.98,33.06]
[1751302981902,9.56705311,157.03,156.95,583.38]
[1751302983105,6.3688,156.98,156.95,583.38]
[1751302983305,5.8470664,157.02,156.96,3.71998671]
[1751302983507,10.2172664,157.05,156.98,3.71998671]
[1751302983702,10.2172664,157.05,156.95,585.6562]
[1751302983703,3.71998671,157.03,156.95,585.6562]
[1751302983900,5.8470664,157.02,156.95,583.38]
[1751302984500,7.70897155,157.04,156.96,3.71998671]
[1751302984501,5.8470664,157.04,156.96,3.71998671]
[1751302985405,6.3676,157.01,156.98,6.3686]
[1751302985805,6.3668,157.03,157.0,6.3676]
[1751302986008,6.3668,157.03,157.0,10.08758671]
[1751302986205,7.9255664,157.06,157.0,3.71998671]
[1751302986401,6.3667,157.03,157.0,10.08758671]
[1751302986598,6.3667,157.03,157.0,3.71998671]
[1751302987498,6.367,157.02,157.0,3.71998671]
[1751302987700,5.8470664,157.06,157.0,3.71998671]
[1751302988204,6.3671,157.02,157.0,3.71998671]
[1751302989206,6.3674,157.01,157.0,3.71998671]
[1751302989711,5.8470664,157.06,156.99,39.4082]
[1751302990011,5.8470664,157.06,156.99,36.75998671]
[1751302990404,6.3672,157.02,156.99,36.75998671]
[1751302990905,6.3667,157.03,156.99,43.12778671]
[1751302991708,6.3671,157.02,156.99,43.12778671]
[1751302993107,6.3671,157.02,156.99,36.75998671]
[1751302993302,5.8470664,157.07,157.01,3.71998671]
[1751302994111,5.8470664,157.08,157.01,3.71998671]
[1751302994306,6.3668,157.03,157.01,3.71998671]
[1751302994703,5.8470664,157.08,157.01,10.08728671]
[1751302995308,6.3665,157.04,157.01,3.71998671]
[1751302995812,6.3665,157.04,157.01,10.08708671]
[1751302997014,6.3665,157.04,157.02,6.3669]
[1751302998314,6.3665,157.04,157.01,10.08718671]
[1751302998710,6.3665,157.04,157.01,3.71998671]
[1751302999415,6.3665,157.04,157.02,6.3668]
[1751302999816,16.45008671,157.07,156.96,7.96089738]
[1751303000012,9.56705311,157.05,156.99,6.3681]
[1751303000314,6.3674,157.01,156.99,6.3681]
[1751303002010,5.8470664,157.06,157.0,36.69998671]
[1751303002216,5.8470664,157.07,157.02,3.71998671]
[1751303002607,5.8470664,157.07,157.02,10.08678671]
[1751303002812,5.8470664,157.07,157.02,3.71998671]
[1751303003016,38.8270664,157.09,157.02,3.71998671]
[1751303003211,5.8470664,157.08,157.04,3.71998671]
[1751303003411,12.2541664,157.1,157.04,3.71998671]
[1751303003716,12.2541664,157.1,157.04,36.69998671]
[1751303003915,6.4071,157.1,157.04,43.06578671]
[1751303004319,12.2541664,157.1,157.04,43.06578671]
[1751303004515,6.3648,157.08,157.05,6.3657]
[1751303006117,6.3644,157.09,157.06,10.08528671]
[1751303006320,5.8470664,157.11,157.06,3.71998671]
[1751303006718,6.3646,157.08,157.06,3.71998671]
[1751303007315,99.23794683,157.12,157.06,3.71998671]
[1751303007514,5.8470664,157.11,157.06,3.71998671]
[1751303007713,6.3644,157.09,157.06,3.71998671]
[1751303008414,6.3646,157.08,157.05,6.3655]
[1751303008616,99.23794683,157.12,157.05,3.71998671]
[1751303008811,5.8470664,157.1,157.04,32.98]
[1751303009014,6.3664,157.04,157.01,36.69998671]
[1751303009523,6.3666,157.03,157.01,36.69998671]
[1751303010419,3.71998671,157.03,156.97,32.98]
[1751303010722,6.367,157.03,156.98,3.71998671]
[1751303010915,32.98,157.06,156.98,3.71998671]
[1751303011117,8.1038664,157.07,157.0,3.71998671]
[1751303011417,8.1038664,157.07,157.01,39.3473]
[1751303011617,2.2568,157.07,157.01,39.3473]
[1751303011815,6.3664,157.04,157.01,32.98]
[1751303014724,3.71998671,157.06,157.01,32.98]
[1751303014917,9.56705311,157.06,157.01,32.98]
[1751303015422,6.367,157.02,157.01,32.98]
[1751303015819,9.56705311,157.06,157.01,32.98]
[1751303016023,5.8470664,157.06,157.01,32.98]
[1751303016218,9.56705311,157.06,156.96,6.5743]
[1751303016424,6.3685,156.99,156.96,36.69998671]
[1751303017025,6.3686,156.98,156.96,32.98]
[1751303017223,5.8470664,157.03,156.96,32.98]
[1751303017522,3.71998671,157.02,156.96,32.98]
[1751303017723,6.3684,156.99,156.96,32.98]
[1751303018125,5.8470664,157.04,156.96,36.69998671]
[1751303018515,3.71998671,157.01,156.96,32.98]
[1751303018917,6.369,156.97,156.96,32.98]
[1751303019213,3.71998671,157.01,156.93,32.98]
[1751303019525,6.3692,156.97,156.93,39.3503]
[1751303020118,6.3695,156.96,156.93,39.3503]
[1751303020314,11.70825311,157.01,156.93,39.3503]
[1751303021023,6.3692,156.97,156.93,39.3503]
[1751303022726,6.3695,156.96,156.93,39.3503]
[1751303024631,6.3693,156.97,156.94,6.3702]
[1751303024934,5.86118671,157.01,156.94,6.3702]
[1751303026129,6.3693,156.97,156.94,6.3702]
[1751303027431,40.92698671,157.02,156.94,3.71998671]
[1751303027736,33.0,157.05,156.98,3.71998671]
[1751303027930,33.0,157.05,156.98,36.71998671]
[1751303028125,6.3666,157.03,156.99,6.3679]
[1751303028326,2.1358,157.06,156.99,6.3679]
[1751303029437,6.3668,157.03,156.99,6.3679]
[1751303029632,6.3668,157.03,157.0,6.3677]
[1751303030028,5.8470664,157.08,157.04,6.3661]
[1751303030242,5.8470664,157.1,157.04,3.71998671]
[1751303030438,6.364,157.1,157.06,3.71998671]
[1751303030736,93.39088043,157.12,157.06,3.71998671]
[1751303030937,6.3644,157.09,157.06,3.71998671]
[1751303031138,93.39088043,157.12,157.06,3.71998671]
[1751303031532,6.3643,157.09,157.06,3.71998671]
[1751303031733,93.39088043,157.12,157.06,3.71998671]
[1751303032334,6.3641,157.1,157.06,10.08518671]
[1751303032933,93.39088043,157.12,157.06,10.08518671]
[1751303033134,93.39088043,157.12,157.06,3.71998671]
[1751303033442,97.11086714,157.12,157.04,3.71998671]
[1751303034141,102.95793354,157.12,157.04,3.71998671]
[1751303034337,102.95793354,157.12,157.03,33.0]
[1751303034338,3.71998671,157.1,157.03,33.0]
[1751303034535,3.71998671,157.08,157.03,33.0]
[1751303034934,6.366,157.05,157.03,33.0]
[1751303035333,6.3664,157.04,157.0,43.02758671]
[1751303037746,6.3666,157.03,157.0,43.02758671]
[1751303038046,3.71998671,157.08,157.01,6.3673]
[1751303038347,6.3664,157.04,157.0,36.65998671]
[1751303039048,6.3666,157.03,157.0,43.02758671]
[1751303039248,3.71998671,157.08,157.0,43.02758671]
[1751303039748,3.71998671,157.08,157.0,36.65998671]
[1751303040251,6.3666,157.03,157.0,36.65998671]
[1751303040452,3.71998671,157.08,157.0,36.65998671]
[1751303040652,3.71998671,157.06,157.0,32.94]
[1751303040851,45.3201664,157.09,156.97,583.28]
[1751303040852,3.71998671,157.04,156.97,583.28]
[1751303041555,3.71998671,157.07,156.98,3.71998671]
[1751303041946,3.71998671,157.08,157.01,6.3674]
[1751303042248,16.10015311,157.09,157.01,39.3074]
[1751303042443,10.25308671,157.09,157.01,32.94]
[1751303042643,6.3651,157.07,157.02,3.71998671]
[1751303042847,6.5331,157.09,157.02,3.71998671]
[1751303043252,6.365,157.07,157.03,6.3665]
[1751303044857,6.3654,157.06,157.03,6.3665]
[1751303045855,6.3659,157.05,157.02,10.08678671]
[1751303046057,10.25308671,157.09,157.01,32.94]
[1751303046252,3.71998671,157.07,157.0,32.94]
[1751303046858,16.10015311,157.09,157.02,10.08678671]
[1751303047060,6.3657,157.06,157.02,10.08678671]
[1751303047258,16.10015311,157.09,157.02,10.08678671]
[1751303047552,16.10015311,157.09,157.02,3.71998671]
[1751303047950,16.10015311,157.09,157.02,10.08678671]
[1751303048148,6.3656,157.06,157.02,10.08678671]
[1751303048347,10.25308671,157.09,157.02,10.08678671]
[1751303048755,5.8470664,157.11,157.04,3.71998671]
[1751303048953,5.8470664,157.14,157.08,3.71998671]
[1751303049158,5.8470664,157.14,157.09,32.94]
[1751303049456,4.4924,157.15,157.09,32.94]
[1751303049656,6.3636,157.11,157.09,32.94]
[1751303049854,4.4924,157.15,157.09,39.3039]
[1751303050054,4.4924,157.15,157.09,32.94]
[1751303051754,6.3637,157.1,157.09,32.94]
[1751303051950,8.21238671,157.15,157.06,3.71998671]
[1751303052154,8.21238671,157.15,157.07,32.92]
[1751303052351,6.3645,157.08,157.07,32.92]
[1751303054855,5.8470664,157.14,157.07,36.63224087]
[1751303055056,5.8470664,157.2,157.13,3.71035498]
[1751303055252,37.1206,157.21,157.13,3.71035498]
[1751303055452,4.2006,157.21,157.15,3.71035498]
[1751303055855,6.3603,157.19,157.15,3.71035498]
[1751303056362,6.3603,157.19,157.15,10.07185498]
[1751303056752,6.3603,157.19,157.15,3.71035498]
[1751303057249,4.2006,157.21,157.14,3.71035498]
[1751303057250,7.91095498,157.21,157.14,3.71035498]
[1751303058356,6.3612,157.17,157.14,3.71035498]
[1751303058551,7.91095498,157.21,157.14,3.71035498]
[1751303058754,2.1376,157.21,157.14,3.71035498]
[1751303059057,2.1376,157.21,157.16,3.71035498]
[1751303059256,2.1376,157.21,157.16,36.63035498]
[1751303059562,6.3607,157.18,157.16,36.63035498]
[1751303060460,6.3601,157.19,157.16,36.63035498]
[1751303060664,32.92,157.24,157.18,3.71035498]
[1751303060962,6.3598,157.2,157.18,3.71035498]
[1751303061362,2.23,157.25,157.18,3.71035498]
[1751303062262,6.3599,157.2,157.18,3.71035498]
[1751303063062,2.23,157.25,157.18,3.71035498]
[1751303063263,38.78585498,157.27,157.2,3.71035498]
[1751303063461,38.78585498,157.27,157.2,36.59035498]
[1751303063657,6.3587,157.23,157.2,36.59035498]
[1751303063856,2.1555,157.27,157.22,3.71035498]
[1751303064052,2.0763,157.28,157.22,3.71035498]
[1751303064457,3.71035498,157.25,157.18,32.88]
[1751303064664,6.3593,157.21,157.19,3.71035498]
[1751303064867,3.71035498,157.27,157.18,32.88]
[1751303065062,3.71035498,157.25,157.18,32.88]
[1751303065268,6.3601,157.19,157.18,32.88]
[1751303065565,3.71035498,157.25,157.18,32.88]
[1751303065766,6.3599,157.2,157.18,32.88]
[1751303065962,5.8470664,157.3,157.19,3.70570384]
[1751303066167,5.8470664,157.3,157.27,3.7028514]
[1751303066364,9.5499178,157.34,157.19,549.78]
[1751303066567,3.7028514,157.34,157.26,3.7028514]
[1751303066759,6.3563,157.29,157.26,36.5628514]
[1751303067366,6.3565,157.28,157.26,32.86]
[1751303067670,3.7028514,157.32,157.25,36.5628514]
[1751303067869,6.3569,157.27,157.25,32.86]
[1751303068472,6.3569,157.27,157.24,6.358]
[1751303068667,6.3569,157.27,157.25,32.86]
[1751303069166,6.3569,157.27,157.24,6.358]
[1751303069369,6.3569,157.27,157.25,32.86]
[1751303069571,5.48775108,157.33,157.25,32.86]
[1751303069572,6.3566,157.28,157.25,32.86]
[1751303069964,6.3566,157.28,157.24,6.358]
[1751303070168,6.3566,157.28,157.25,32.86]
[1751303070474,6.3569,157.27,157.25,32.86]
[1751303071761,6.3566,157.28,157.25,32.86]
[1751303071973,6.3566,157.28,157.24,6.3581]
[1751303072165,6.3566,157.28,157.24,39.2181]
[1751303072568,32.86,157.35,157.25,5.48775108]
[1751303072769,38.34775108,157.35,157.25,5.48775108]
[1751303073170,6.3567,157.28,157.25,5.48775108]
[1751303074168,38.34775108,157.35,157.25,11.84525108]
[1751303074775,5.48775108,157.33,157.24,39.218]
[1751303075470,6.3567,157.28,157.24,39.218]
[1751303075977,5.48775108,157.33,157.24,39.218]
[1751303076178,6.3571,157.27,157.24,32.86]
[1751303076973,5.48775108,157.31,157.24,32.86]
[1751303077176,6.371,157.3,157.24,32.86]
[1751303077677,6.3577,157.25,157.24,32.86]
[1751303078274,5.48775108,157.29,157.19,549.78]
[1751303078480,5.48775108,157.29,157.19,582.64]
[1751303078680,5.48775108,157.29,157.2,5.48775108]
[1751303079380,6.3582,157.24,157.21,6.359]
[1751303079680,6.371,157.3,157.22,5.48775108]
[1751303079879,6.3567,157.28,157.23,32.86]
[1751303080073,6.3567,157.28,157.24,38.34775108]
[1751303080471,6.3567,157.28,157.24,44.70565108]
[1751303081783,6.3569,157.27,157.24,32.86]
[1751303082381,6.3573,157.26,157.24,32.86]
[1751303083881,6.357,157.27,157.24,39.218]
[1751303084479,6.3574,157.26,157.24,39.218]
[1751303085986,6.3574,157.26,157.24,32.86]
[1751303086386,6.3574,157.26,157.24,39.218]
[1751303087383,6.3577,157.25,157.24,32.86]
[1751303087588,5.48775108,157.33,157.24,32.86]
[1751303087991,32.86,157.34,157.24,32.86]
[1751303088184,32.86,157.34,157.25,5.48775108]
[1751303088586,32.86,157.34,157.25,11.84545108]
[1751303089084,6.3564,157.29,157.25,11.84545108]
[1751303089386,32.86,157.34,157.26,6.3571]
[1751303089799,6.3558,157.3,157.26,6.3571]
[1751303090399,6.3555,157.31,157.25,3.70386637]
[1751303090799,32.86,157.34,157.25,3.70386637]
[1751303091399,32.86,157.34,157.28,6.3563]
[1751303091998,6.3555,157.31,157.28,6.3563]
[1751303092196,6.3555,157.31,157.27,6.3567]
[1751303092997,6.3557,157.3,157.27,6.3567]
[1751303093292,36.56386637,157.34,157.25,3.70386637]
[1751303093898,32.86,157.34,157.27,3.70386637]
[1751303094098,6.355,157.32,157.27,3.70386637]
[1751303094297,6.355,157.32,157.29,6.3559]
[1751303094497,8.19226637,157.35,157.28,33.2]
[1751303095602,4.4884,157.35,157.28,33.2]
[1751303095798,6.355,157.32,157.28,33.2]
[1751303096001,4.3593,157.39,157.31,3.70386637]
[1751303096197,4.3593,157.39,157.32,33.2]
[1751303097204,6.3539,157.35,157.32,33.2]
[1751303097797,6.3543,157.34,157.32,33.2]
[1751303097998,4.3593,157.39,157.32,33.2]
[1751303098498,3.70386637,157.36,157.27,33.2]
[1751303098705,3.70386637,157.34,157.27,33.2]
[1751303099506,9.55093277,157.34,157.27,33.2]
[1751303101101,6.3565,157.28,157.27,33.2]
[1751303101804,9.55093277,157.34,157.27,33.2]
[1751303102200,6.3565,157.28,157.27,33.2]
[1751303102599,9.55093277,157.34,157.27,33.2]
[1751303102998,6.3561,157.29,157.27,33.2]
[1751303103403,9.55093277,157.34,157.27,33.2]
[1751303103605,6.3561,157.29,157.27,33.2]
[1751303104502,6.3565,157.28,157.27,33.2]
[1751303105000,6.3562,157.29,157.27,33.2]
[1751303106600,10.2782664,157.33,157.27,33.2]
[1751303106805,6.3565,157.28,157.27,33.2]
[1751303107200,6.3562,157.29,157.27,33.2]
[1751303107702,6.3565,157.28,157.27,33.2]
[1751303112006,9.55093277,157.3,157.21,4.3112]
[1751303112198,9.55093277,157.28,157.22,33.2]
[1751303112402,5.8470664,157.27,157.22,33.2]
[1751303112605,6.3587,157.23,157.22,33.2]
[1751303117615,5.8470664,157.25,157.19,582.98]
[1751303118217,3.70386637,157.24,157.16,35.2768]
[1751303118415,3.70386637,157.2,157.13,33.2]
[1751303118617,3.70386637,157.2,157.1,33.2]
[1751303118618,6.3633,157.11,157.1,33.2]
[1751303118916,9.55093277,157.14,157.07,35.4685]
[1751303119117,6.3632,157.12,157.08,10.06816637]
[1751303119321,42.75093277,157.17,157.08,3.70386637]
[1751303119717,6.363,157.12,157.08,10.06806637]
[1751303120015,3.70386637,157.15,157.07,35.4685]
[1751303120220,3.70386637,157.15,157.03,37.4282]
[1751303120221,3.70386637,157.11,157.03,37.4282]
[1751303121015,37.5516,157.12,157.04,3.70386637]
[1751303121417,37.5516,157.12,157.04,10.06996637]
[1751303121615,37.5516,157.12,157.04,3.70386637]
[1751303121811,5.50311003,157.11,157.03,33.2]
[1751303122721,5.50311003,157.09,157.0,33.2]
[1751303123116,6.3668,157.03,157.0,33.2]
[1751303123720,6.3662,157.04,157.0,33.2]
[1751303123921,35.393,157.08,157.0,33.2]
[1751303124318,35.393,157.08,157.0,39.5677]
[1751303124319,6.3659,157.05,157.0,39.5677]
[1751303124623,35.393,157.08,157.0,39.5677]
[1751303124817,35.393,157.08,157.01,6.3674]
[1751303125421,6.366,157.05,157.0,39.5676]
[1751303125621,35.393,157.08,157.0,33.2]
[1751303126020,33.2,157.08,157.0,33.2]
[1751303126420,38.62431163,157.11,157.0,33.2]
[1751303127222,38.62431163,157.11,157.02,6.3669]
[1751303127919,6.3652,157.07,157.02,6.3669]
[1751303128119,38.62431163,157.11,157.01,6.3673]
[1751303128419,6.3654,157.07,157.0,33.2]
[1751303128624,6.3654,157.07,157.02,6.3669]
[1751303130229,6.3654,157.07,157.03,6.3665]
[1751303130424,6.3655,157.06,157.0,33.2]
[1751303130615,33.12,157.11,157.03,5.50431163]
[1751303130820,4.3516,157.12,157.04,33.12]
[1751303131124,6.3652,157.07,157.04,33.12]
[1751303131320,9.85292435,157.12,157.04,39.4859]
[1751303131925,9.85292435,157.12,157.04,33.12]
[1751303132528,7.75762435,157.12,157.04,33.12]
[1751303133629,6.3652,157.07,157.04,33.12]
[1751303133930,7.75762435,157.12,157.04,33.12]
[1751303134131,6.3656,157.06,157.04,33.12]
[1751303135825,38.62132435,157.1,157.01,33.12]
[1751303136031,5.50132435,157.06,156.97,33.12]
[1751303136731,38.62132435,157.06,156.97,33.12]
[1751303137433,6.3679,157.0,156.97,33.12]
[1751303138634,38.62132435,157.06,156.97,33.12]
[1751303139333,6.3673,157.02,156.98,6.3684]
[1751303139529,38.62132435,157.06,156.98,6.3684]
[1751303140836,38.62132435,157.06,156.99,6.3682]
[1751303141031,33.12,157.06,156.98,5.50132435]
[1751303141432,6.3665,157.04,157.0,6.3676]
[1751303141738,38.64132435,157.09,156.98,5.50132435]
[1751303141936,5.50132435,157.07,156.97,33.12]
[1751303142537,6.3678,157.01,156.97,33.12]
[1751303142738,5.50132435,157.05,156.97,33.12]
[1751303143034,6.3684,156.99,156.97,33.12]
[1751303143633,38.64132435,157.05,156.97,33.12]
[1751303144033,5.50132435,157.03,156.97,33.12]
[1751303144337,5.50132435,157.03,156.94,582.68]
[1751303144937,6.369,156.97,156.94,582.68]
[1751303145234,5.50132435,157.03,156.94,589.0502]
[1751303145438,6.3689,156.98,156.94,589.0502]
[1751303145632,5.50132435,157.03,156.94,582.68]
[1751303145826,5.51306169,156.97,156.76,7.93191454]
[1751303146033,5.51306169,156.95,156.86,35.2562]
[1751303146334,38.65306169,156.97,156.87,6.3729]
[1751303146531,6.3713,156.92,156.87,8.5368]
[1751303146933,38.65306169,156.97,156.87,2.1639]
[1751303147128,7.57386169,156.99,156.9,5.51306169]
[1751303147435,7.57386169,156.99,156.91,33.14]
[1751303148334,6.3702,156.94,156.91,33.14]
[1751303148736,7.57386169,156.99,156.91,39.5114]
[1751303149044,7.57386169,156.99,156.91,33.14]
[1751303149240,2.0608,156.99,156.91,33.14]
[1751303150343,6.3703,156.94,156.91,33.14]
[1751303151543,6.37,156.95,156.91,39.5114]
[1751303151741,6.37,156.95,156.91,33.14]
[1751303151946,5.78081904,156.99,156.91,33.14]
[1751303152536,6.3699,156.95,156.91,39.5114]
[1751303153246,6.3695,156.96,156.92,3.72001904]
[1751303153436,3.72001904,156.99,156.92,3.72001904]
[1751303153845,33.14,157.0,156.92,3.72001904]
[1751303154149,36.86001904,157.0,156.92,3.72001904]
[1751303154548,6.3702,156.94,156.92,3.72001904]
[1751303155041,6.3699,156.95,156.92,3.72001904]
[1751303155938,33.14,157.0,156.92,10.09101904]
[1751303156448,6.37,156.95,156.92,3.72001904]
[1751303157043,6.3706,156.93,156.92,3.72001904]